bitfinex/quotes_ETHUSD_20251118
["timestamp","ask_amount","ask_price","bid_price","bid_amount"]
[1763432291903,6.92906387,2993.3,2993.1,0.18]
[1763432292122,6.92906387,2993.3,2992.7,0.18]
[1763432292257,10.0,2996.3,2993.2,0.4772]
[1763432292258,0.1667,2995.2,2993.2,0.4772]
[1763432292779,0.4937,2996.2,2993.2,0.4772]
[1763432292984,0.4937,2996.2,2993.3,0.405504]
[1763432293173,0.4937,2996.2,2993.2,0.4772]
[1763432293883,0.405504,2996.1,2993.2,0.4772]
[1763432294193,0.4937,2996.2,2993.2,0.4772]
[1763432294397,1.13444661,2996.3,2993.3,0.405504]
[1763432294600,10.0,2996.4,2993.3,0.405504]
[1763432294770,0.4937,2996.7,2993.5,0.405504]
[1763432294970,0.4937,2997.4,2993.7,0.405504]
[1763432295172,1.13444661,2997.7,2993.9,0.405504]
[1763432295391,0.4937,2998.0,2994.1,0.405504]
[1763432295762,0.4937,2998.0,2994.3,0.405504]
[1763432296170,0.4937,2998.0,2994.2,0.4772]
[1763432296171,1.30114661,2998.5,2994.5,0.405504]
[1763432296400,0.4937,2998.4,2994.4,0.4772]
[1763432296611,1.13444661,2998.3,2994.5,0.405504]
[1763432296775,1.62814661,2998.4,2994.5,0.405504]
[1763432296980,1.62814661,2998.4,2993.7,0.90699264]
[1763432296981,0.4937,2998.3,2994.7,0.405504]
[1763432297181,1.30114661,2998.5,2994.9,0.405504]
[1763432297367,0.4937,2998.4,2994.9,0.405504]
[1763432297568,1.13444661,2998.2,2995.0,0.4772]
[1763432297886,1.13444661,2997.8,2995.0,0.4772]
[1763432298087,1.53995061,2997.8,2995.0,0.4772]
[1763432298301,0.405504,2997.8,2995.0,0.4772]
[1763432298614,0.405504,2997.6,2995.0,0.4772]
[1763432298965,2.40743709,2998.4,2995.1,0.405504]
[1763432298966,1.13444661,2998.1,2995.1,0.405504]
[1763432299167,1.13444661,2998.2,2995.1,0.405504]
[1763432299507,1.61744661,2998.2,2995.3,0.405504]
[1763432299863,0.483,2998.2,2995.5,0.405504]
[1763432300063,0.483,2998.2,2995.6,0.4674]
[1763432300771,1.07369264,2998.5,2995.7,0.405504]
[1763432300772,0.1667,2998.5,2995.7,0.405504]
[1763432300970,0.483,2998.9,2995.7,0.405504]
[1763432301314,0.483,2998.8,2995.9,0.405504]
[1763432301522,1.13444661,2998.1,2995.8,0.4674]
[1763432301727,0.405504,2997.0,2994.9,0.1923]
[1763432302023,0.405504,2997.0,2994.5,0.4674]
[1763432302024,0.405504,2996.6,2994.4,0.6597]
[1763432302223,1.53995061,2996.2,2993.7,0.4674]
[1763432302425,0.6997,2996.9,2993.7,0.4674]
[1763432302426,0.405504,2995.8,2993.7,0.4674]
[1763432302745,2.02295061,2995.8,2993.7,0.4674]
[1763432303087,1.13444661,2995.6,2993.7,0.4674]
[1763432303402,0.483,2995.7,2993.7,0.4674]
[1763432303403,2.52443925,2995.7,2993.7,0.4674]
[1763432303606,1.61744661,2995.7,2993.7,0.4674]
[1763432304000,0.483,2995.7,2993.7,0.4674]
[1763432304203,1.13444661,2995.9,2993.7,0.4674]
[1763432304429,2.94679636,2996.7,2993.7,0.4674]
[1763432304430,1.13444661,2996.2,2993.8,0.405504]
[1763432304728,1.13444661,2996.2,2993.7,0.4674]
[1763432304729,1.13444661,2997.3,2994.0,0.405504]
[1763432304898,1.13444661,2997.7,2994.0,0.405504]
[1763432305099,1.13444661,2998.1,2994.2,0.405504]
[1763432305312,1.13444661,2998.5,2994.4,0.405504]
[1763432305518,1.13444661,2998.7,2994.6,0.405504]
[1763432305825,1.13444661,2998.1,2994.8,0.405504]
[1763432305998,2.04143925,2998.0,2994.8,0.405504]
[1763432306197,1.13444661,2998.0,2995.0,0.405504]
[1763432306400,1.13444661,2998.1,2995.0,0.405504]
[1763432306700,1.13444661,2998.0,2995.2,0.405504]
[1763432306900,1.13444661,2998.0,2995.1,0.4674]
[1763432307230,0.405504,2997.4,2995.1,0.4674]
[1763432307429,0.405504,2997.2,2995.1,0.4674]
[1763432307633,1.53995061,2996.7,2995.1,0.4674]
[1763432307939,0.405504,2996.7,2995.1,0.4674]
[1763432308139,1.13444661,2996.8,2995.1,0.4674]
[1763432308291,1.13444661,2996.5,2995.1,0.4674]
[1763432308492,1.13444661,2996.3,2994.1,0.1923]
[1763432308719,1.13444661,2996.2,2995.1,0.4674]
[1763432308926,0.90699264,2996.3,2995.1,0.4674]
[1763432308927,1.13444661,2996.3,2995.1,0.4674]
[1763432309128,1.13444661,2996.5,2995.1,0.4674]
[1763432309426,2.04143925,2996.8,2995.1,0.4674]
[1763432309591,0.405504,2997.2,2995.1,0.4674]
[1763432309592,0.00289794,2996.5,2995.1,0.4674]
[1763432310024,1.54284855,2996.5,2995.1,0.4674]
[1763432310228,1.13444661,2996.1,2995.1,0.4674]
[1763432310429,0.00289794,2996.0,2995.1,0.4674]
[1763432314433,0.00289794,2996.0,2994.3,0.4674]
[1763432315959,0.00289794,2996.0,2993.6,0.1923]
[1763432315960,3.98519794,2996.0,2993.8,0.4885]
[1763432316116,4.42399264,2995.0,2993.1,0.4885]
[1763432316320,0.00289794,2994.9,2993.4,0.4885]
[1763432316516,1.13444661,2994.7,2993.0,0.4885]
[1763432316754,1.13444661,2994.5,2993.4,0.4885]
[1763432316923,0.00289794,2994.4,2993.4,0.4885]
[1763432317122,0.00289794,2994.4,2993.3,0.001]
[1763432317621,1.13444661,2995.7,2993.4,0.4885]
[1763432317921,1.13444661,2996.2,2994.7,0.1891]
[1763432318117,1.13444661,2996.3,2994.8,0.4885]
[1763432318433,1.75713684,2996.5,2994.8,0.4885]
[1763432318434,1.13444661,2996.5,2994.8,0.4885]
[1763432318744,1.13444661,2996.4,2994.8,0.4885]
[1763432319126,1.13444661,2996.3,2994.8,0.4885]
[1763432319316,4.65144661,2996.2,2994.8,0.4885]
[1763432319565,0.90699264,2995.9,2994.7,0.1891]
[1763432319771,1.13444661,2995.7,2994.7,0.1891]
[1763432319920,4.65144661,2995.8,2994.7,0.1891]
[1763432320262,1.13444661,2995.6,2994.3,0.4885]
[1763432320475,5.55843925,2995.4,2993.9,0.1891]
[1763432320677,1.13444661,2995.1,2993.9,0.1891]
[1763432320855,0.90699264,2995.2,2994.0,0.4885]
[1763432321044,0.90699264,2995.2,2993.3,0.001]
[1763432321045,0.4653,2995.1,2993.3,0.001]
[1763432321246,0.4653,2995.1,2993.4,0.4885]
[1763432321966,1.09259264,2996.1,2993.5,0.405504]
[1763432321967,2.06338797,2995.4,2993.5,0.405504]
[1763432322151,1.15639533,2995.5,2993.5,0.405504]
[1763432322482,1.15639533,2995.4,2993.6,0.4885]
[1763432322983,0.405504,2996.7,2993.7,0.594604]
[1763432322984,1.15639533,2995.7,2993.7,0.594604]
[1763432323194,1.15639533,2995.7,2993.7,0.1891]
[1763432323475,5.25159299,2995.9,2993.3,0.4895]
[1763432323476,1.15639533,2994.7,2993.3,0.4895]
[1763432323642,1.15639533,2994.2,2993.3,0.001]
[1763432323847,4.67339533,2993.7,2993.3,0.001]
[1763432324042,4.67339533,2993.7,2991.1,0.18]
[1763432324043,1.15690549,2993.6,2991.9,1.62494449]
[1763432324375,0.05,2995.3,2991.1,0.18]
[1763432324376,4.04738366,2995.1,2992.0,2.19448347]
[1763432324550,0.4653,2995.6,2992.2,1.65525379]
[1763432324883,0.4653,2995.6,2992.3,2.09798087]
[1763432325085,0.4653,2995.6,2992.5,0.405504]
[1763432325297,15.78197666,2997.0,2992.7,0.405504]
[1763432325298,3.07028833,2996.9,2992.7,0.405504]
[1763432325498,3.07028833,2996.9,2992.6,0.21158908]
[1763432325499,0.4653,2996.5,2992.6,0.21158908]
[1763432325649,0.4653,2996.5,2992.7,0.405504]
[1763432326087,0.1793,2996.9,2992.9,0.405504]
[1763432326287,0.4653,2997.1,2993.1,0.405504]
[1763432326461,0.4653,2997.1,2993.3,0.405504]
[1763432327247,0.4653,2997.1,2993.4,0.405504]
[1763432327491,0.1856,2998.1,2993.9,1.30245873]
[1763432327804,0.1856,2998.1,2995.0,0.405504]
[1763432328030,0.4653,2998.0,2995.0,0.405504]
[1763432328233,0.4653,2998.0,2994.6,0.405504]
[1763432328578,0.4653,2998.0,2994.6,1.30245873]
[1763432328774,0.4653,2998.0,2994.6,0.405504]
[1763432328999,0.4653,2998.0,2994.5,0.405504]
[1763432329200,0.4653,2998.0,2994.2,1.30245873]
[1763432329401,0.4653,2998.0,2994.2,0.31803443]
[1763432329608,0.4653,2998.0,2993.7,1.80394737]
[1763432329907,0.4653,2998.0,2993.7,0.90699264]
[1763432330080,0.4653,2998.0,2993.7,1.80394737]
[1763432330703,0.4653,2998.0,2993.9,0.89695473]
[1763432330904,0.405504,2997.9,2993.6,1.64371777]
[1763432331117,0.405504,2997.3,2993.0,1.68025785]
[1763432331427,0.405504,2997.1,2992.7,2.5517685]
[1763432331680,0.405504,2997.1,2992.8,1.69231615]
[1763432331821,0.4653,2997.0,2992.9,1.63251097]
[1763432332036,1.31249664,2996.9,2993.4,1.65157707]
[1763432332334,0.90699264,2996.9,2993.4,1.65157707]
[1763432332619,0.405504,2996.7,2993.4,1.65157707]
[1763432332999,0.4653,2996.6,2993.4,1.65157707]
[1763432333988,0.4653,2996.6,2993.7,0.405504]
[1763432334190,0.4653,2996.6,2993.3,0.001]
[1763432334191,3.21892632,2996.5,2993.4,1.65157707]
[1763432334518,1.31249664,2996.2,2993.4,1.65157707]
[1763432334720,0.4653,2996.1,2993.4,1.65157707]
[1763432335444,1.31249664,2995.5,2993.4,1.65157707]
[1763432335752,3.21892632,2995.6,2993.4,1.65157707]
[1763432335933,0.870804,2995.5,2993.4,1.65157707]
[1763432336249,0.4653,2995.5,2993.4,1.65157707]
[1763432336431,0.4653,2995.4,2993.6,1.64371777]
[1763432336746,0.4653,2995.4,2993.4,1.65157707]
[1763432337159,2.31193368,2996.4,2993.5,2.08039425]
[1763432337454,10.05,2997.4,2993.5,2.08039425]
[1763432337455,0.4653,2996.0,2993.7,0.405504]
[1763432339548,0.90699264,2996.6,2993.7,0.405504]
[1763432339549,0.4653,2996.6,2993.7,0.405504]
[1763432339715,0.4653,2996.5,2993.7,0.405504]
[1763432340747,0.4653,2996.5,2993.4,1.65157707]
[1763432341273,0.90699264,2996.1,2993.7,5.87367827]
[1763432341417,0.4653,2996.5,2993.8,0.58736783]
[1763432341612,0.4653,2996.4,2993.9,0.405504]
[1763432341817,0.4653,2996.4,2993.8,1.49436047]
[1763432341818,0.4653,2997.1,2994.5,0.405504]
[1763432342128,0.4653,2997.6,2995.2,0.405504]
[1763432342444,0.6529,2998.1,2995.4,0.405504]
[1763432342813,0.002,2998.1,2995.9,1.31249664]
[1763432343027,0.002,2998.1,2996.1,0.405504]
[1763432343462,0.002,2998.1,2996.0,0.405504]
[1763432343662,0.002,2998.1,2996.5,0.405504]
[1763432344033,0.002,2998.1,2995.9,0.90699264]
[1763432344361,0.002,2998.1,2996.6,0.405504]
[1763432344573,0.002,2998.1,2997.3,0.405504]
[1763432344774,0.002,2998.1,2996.6,1.31249664]
[1763432344775,0.002,2998.1,2997.9,0.405504]
[1763432344992,0.002,2998.4,2997.9,0.43886068]
[1763432345132,0.002,2998.4,2997.9,0.405504]
[1763432346260,0.002,2998.4,2997.6,0.405504]
[1763432346447,0.002,2998.4,2998.3,0.405504]
[1763432346648,0.1856,3000.0,2998.3,0.405504]
[1763432346973,0.002,3000.2,2998.9,0.405504]
[1763432347173,0.002,3000.2,2999.6,0.405504]
[1763432348129,0.002,3000.2,2998.3,0.62791823]
[1763432348130,0.002,3000.2,3000.1,6.27918227]
[1763432348828,0.002,3000.2,2997.6,0.89695473]
[1763432349159,0.002,3000.2,2999.1,5.87367827]
[1763432349471,0.002,3000.2,2999.2,0.405504]
[1763432351098,0.002,3000.2,2999.7,5.87367827]
[1763432351313,0.002,3000.9,2999.8,0.405504]
[1763432352269,0.002,3000.9,2998.3,0.001]
[1763432352270,0.002,3000.9,2999.4,0.405504]
[1763432352472,0.002,3000.9,3000.4,0.405504]
[1763432352811,0.4765,3002.8,3000.6,0.405504]
[1763432353104,0.4765,3002.8,3000.5,0.405504]
[1763432353263,0.4765,3002.8,3001.0,0.405504]
[1763432353599,0.1985,3003.3,3001.7,0.405504]
[1763432353770,0.4765,3003.6,3001.9,0.405504]
[1763432354206,0.1985,3003.8,3001.7,0.405504]
[1763432354559,5.87367827,3006.0,3001.0,1.53491087]
[1763432354560,0.4765,3004.7,3003.1,0.405504]
[1763432354861,1.72901731,3007.2,3003.0,5.87367827]
[1763432354862,0.4765,3005.7,3003.3,0.405504]
[1763432355078,0.4765,3005.7,3003.0,5.87367827]
[1763432355079,0.4765,3005.7,3003.1,0.43880292]
[1763432355281,0.4765,3005.7,3003.8,0.405504]
[1763432355462,0.4765,3005.7,3004.0,0.405504]
[1763432355662,0.1985,3006.9,3003.8,0.405504]
[1763432355663,0.4765,3006.2,3004.4,0.405504]
[1763432355870,0.4765,3006.2,3003.2,0.405504]
[1763432356074,0.4765,3006.2,3003.4,1.31249664]
[1763432356489,0.4765,3006.2,3003.4,0.405504]
[1763432357006,0.405504,3006.1,3002.7,5.87367827]
[1763432357184,0.405504,3006.1,3001.0,0.62791823]
[1763432357185,0.405504,3006.1,3002.1,5.87367827]
[1763432357384,1.31249664,3005.9,3002.1,5.87367827]
[1763432357774,0.4765,3005.8,3002.2,0.0333089]
[1763432357990,0.4765,3005.8,3002.1,6.40414241]
[1763432357991,0.4765,3005.8,3002.8,0.405504]
[1763432358325,0.4765,3005.8,3003.5,0.405504]
[1763432358326,0.1985,3005.7,3003.5,0.405504]
[1763432358619,0.1985,3005.7,3004.2,0.405504]
[1763432358779,0.1985,3005.7,3003.6,0.405504]
[1763432358780,0.4548,3005.6,3003.6,0.405504]
[1763432359130,0.6533,3005.7,3003.6,0.405504]
[1763432359281,0.4548,3005.6,3003.6,0.405504]
[1763432359482,0.1985,3005.7,3003.6,0.405504]
[1763432359710,0.4548,3005.6,3003.6,0.405504]
[1763432360214,0.4548,3006.0,3003.8,0.405504]
[1763432360415,0.4548,3006.0,3003.7,0.405504]
[1763432362878,0.4548,3006.0,3003.6,0.405504]
[1763432363079,0.4548,3006.0,3003.7,0.03329227]
[1763432363317,0.4548,3006.5,3004.3,0.405504]
[1763432363619,0.4548,3006.5,3004.3,0.43878962]
[1763432363834,0.1985,3006.9,3005.0,0.405504]
[1763432363835,0.6533,3006.9,3005.0,0.405504]
[1763432364181,0.1939,3007.3,3005.6,0.405504]
[1763432364630,0.1939,3007.3,3003.6,0.62791823]
[1763432364631,0.4548,3008.1,3006.3,0.405504]
[1763432365118,0.4548,3008.1,3002.1,1.42741887]
[1763432365119,0.4548,3008.1,3005.6,5.87367827]
[1763432365322,0.4548,3008.1,3005.7,0.405504]
[1763432365684,0.4548,3008.1,3005.6,5.87367827]
[1763432365889,0.4548,3008.1,3004.4,5.87367827]
[1763432365890,0.405504,3008.0,3004.4,5.87367827]
[1763432366212,0.405504,3007.8,3003.8,5.87367827]
[1763432366409,1.31249664,3007.8,3003.8,6.4610461]
[1763432366627,0.405504,3007.6,3003.8,5.87367827]
[1763432367125,0.405504,3007.4,3003.8,5.87367827]
[1763432367523,0.4548,3007.3,3003.8,5.87367827]
[1763432367684,0.405504,3007.2,3003.8,5.87367827]
[1763432368127,0.4548,3007.1,3003.8,5.87367827]
[1763432368387,0.4548,3007.1,3003.9,0.94028269]
[1763432368616,0.4548,3007.1,3004.5,0.405504]
[1763432368894,0.4548,3007.1,3004.4,5.87367827]
[1763432369104,0.4548,3007.1,3004.5,0.405504]
[1763432369596,0.4548,3007.1,3004.7,0.405504]
[1763432369798,0.4548,3007.1,3005.1,0.405504]
[1763432370108,0.4548,3007.5,3005.3,0.405504]
[1763432370310,0.4548,3007.5,3005.2,0.43877965]
[1763432370510,0.4548,3007.5,3005.6,5.87367827]
[1763432370726,0.4548,3007.5,3003.8,0.58736783]
[1763432370890,0.4548,3007.5,3004.7,0.405504]
[1763432371088,0.4548,3007.5,3004.3,5.87367827]
[1763432371517,0.4548,3007.5,3004.4,0.405504]
[1763432372393,0.4548,3007.5,3005.1,0.405504]
[1763432372827,0.4548,3007.5,3005.8,0.405504]
[1763432373031,0.4548,3008.0,3005.8,0.405504]
[1763432373236,0.4548,3008.0,3005.6,0.405504]
[1763432373847,0.4548,3008.0,3005.6,0.224204]
[1763432374151,0.4548,3008.0,3006.2,5.87367827]
[1763432375846,0.4548,3008.0,3005.6,5.87367827]
[1763432376214,0.4548,3008.0,3004.8,5.87367827]
[1763432376536,0.4548,3008.0,3005.5,5.87367827]
[1763432376849,0.4548,3008.0,3005.6,0.405504]
[1763432377438,0.4548,3008.0,3004.9,5.87367827]
[1763432377651,3.9718,3008.0,3004.9,5.87367827]
[1763432377807,3.9718,3008.0,3004.0,5.87367827]
[1763432377808,0.405504,3007.3,3004.0,5.87367827]
[1763432378141,4.82949664,3007.3,3003.4,5.87367827]
[1763432378339,3.922504,3006.9,3003.4,5.87367827]
[1763432378631,0.405504,3006.7,3003.0,5.87367827]
[1763432378838,0.405504,3006.7,3002.1,0.53046414]
[1763432378839,0.90699264,3006.8,3003.8,5.87367827]
[1763432379009,0.90699264,3006.8,3003.1,1.49436047]
[1763432379010,0.4833,3006.7,3003.2,5.87367827]
[1763432379211,0.405504,3006.4,3003.2,5.87367827]
[1763432379613,0.90699264,3006.8,3002.6,5.87367827]
[1763432379614,0.405504,3006.2,3002.6,5.87367827]
[1763432380001,0.4833,3006.1,3002.6,5.87367827]
[1763432380205,0.4833,3006.1,3001.0,1.19593965]
[1763432380206,5.96718322,3006.0,3002.0,5.87367827]
[1763432380404,1.54319058,3005.8,3002.0,5.87367827]
[1763432380799,0.405504,3005.6,3002.0,5.87367827]
[1763432381243,0.4833,3005.5,3002.7,5.87367827]
[1763432381461,0.4833,3005.5,3002.8,0.99287183]
[1763432382520,0.4833,3005.5,3002.8,0.405504]
[1763432384104,0.4833,3005.5,3002.9,0.03330114]
[1763432384302,0.4833,3005.5,3002.8,0.405504]
[1763432384504,0.4833,3005.5,3003.0,0.405504]
[1763432384734,0.4833,3005.5,3002.9,0.405504]
[1763432385542,0.4833,3005.5,3002.9,1.12412149]
[1763432385905,0.4833,3005.5,3003.4,5.87367827]
[1763432386106,1.72901731,3006.4,3003.4,5.87367827]
[1763432386107,0.4833,3005.9,3004.1,0.405504]
[1763432386441,0.1928,3006.1,3003.9,0.405504]
[1763432386626,0.4833,3006.0,3003.9,1.03342223]
[1763432387344,0.4833,3006.0,3003.9,0.62791823]
[1763432387638,0.4833,3006.0,3003.5,5.87367827]
[1763432388865,0.4833,3006.0,3002.9,0.71861749]
[1763432389168,0.4833,3006.0,3003.0,0.94029267]
[1763432389339,0.4833,3006.0,3003.1,0.405504]
[1763432389664,1.62098658,3006.0,3003.1,0.405504]
[1763432390066,1.62098658,3005.9,3003.1,0.405504]
[1763432390364,1.13768658,3005.9,3003.1,0.405504]
[1763432390586,2.82880995,3006.1,3002.8,0.001]
[1763432390587,1.54319058,3005.5,3002.8,0.001]
[1763432390750,0.405504,3005.1,3002.8,0.001]
[1763432391065,1.54319058,3004.8,3002.8,0.001]
[1763432391271,1.31249664,3004.8,3002.8,0.001]
[1763432391454,0.6761,3004.7,3002.8,0.001]
[1763432391661,0.4833,3004.6,3002.8,0.001]
[1763432396864,0.1928,3005.1,3003.4,5.87367827]
[1763432397071,0.1928,3005.1,3003.0,0.405504]
[1763432397250,0.1928,3005.1,3002.8,5.87467827]
[1763432397251,0.4833,3005.0,3002.8,5.87467827]
[1763432397452,0.4833,3005.0,3002.9,0.405504]
[1763432398577,0.405504,3004.9,3002.4,0.001]
[1763432398956,1.13768658,3004.5,3002.4,0.001]
[1763432399148,0.405504,3004.3,3002.4,0.001]
[1763432399345,1.54319058,3004.3,3002.4,0.001]
[1763432399550,0.90699264,3004.0,3002.4,0.001]
[1763432399750,0.405504,3003.9,3002.4,0.001]
[1763432399958,0.1928,3002.5,3002.4,0.001]
[1763432400358,0.6761,3002.5,3000.9,0.001]
[1763432400790,0.4833,3002.4,3000.9,0.001]
[1763432401163,0.1928,3002.5,3000.9,0.001]
[1763432401696,0.1928,3002.8,3000.9,0.001]
[1763432401853,0.4833,3003.9,3001.0,0.405504]
[1763432402060,1.13768658,3004.5,3001.2,0.405504]
[1763432402376,0.1928,3005.1,3002.0,3.31249664]
[1763432402583,0.4833,3005.9,3002.2,1.29921861]
[1763432402754,0.4833,3005.9,3002.4,1.29921861]
[1763432402950,0.4833,3005.9,3003.0,1.31249664]
[1763432403176,0.4833,3005.9,3003.0,0.405504]
[1763432403482,0.4833,3005.9,3001.9,7.08053097]
[1763432403483,0.4833,3005.9,3003.2,0.405504]
[1763432403660,0.4833,3005.9,3003.4,0.405504]
[1763432403862,0.4833,3006.5,3003.5,1.02855063]
[1763432404087,0.4833,3006.5,3003.6,0.405504]
[1763432404268,0.4833,3006.5,3003.8,0.405504]
[1763432404813,0.1928,3006.6,3003.9,0.03329005]
[1763432405110,1.72901731,3007.6,3003.6,0.405504]
[1763432405111,0.1928,3007.5,3004.1,1.31249664]
[1763432405315,0.6761,3007.5,3004.3,0.405504]
[1763432405451,0.6761,3007.5,3004.5,0.405504]
[1763432405655,0.1928,3007.5,3004.7,0.405504]
[1763432405907,0.1816,3007.9,3005.1,1.31249664]
[1763432406205,0.1816,3007.9,3005.3,0.405504]
[1763432406369,0.1816,3007.9,3005.5,0.405504]
[1763432406566,0.002,3008.0,3005.6,0.03327122]
[1763432406751,0.002,3008.1,3006.2,0.89371461]
[1763432406951,0.002,3008.1,3006.6,0.405504]
[1763432407151,0.002,3008.1,3006.1,0.90699264]
[1763432407152,0.002,3008.1,3006.8,0.405504]
[1763432407356,0.4813,3008.0,3005.7,0.89371461]
[1763432407596,0.4813,3008.0,3005.7,0.20896543]
[1763432407780,0.002,3008.1,3005.4,0.43877744]
[1763432407953,0.002,3005.9,3005.4,1.34577008]
[1763432408158,0.002,3008.1,3005.4,1.34577008]
[1763432408357,0.002,3006.3,3005.6,0.405504]
[1763432408570,0.002,3008.1,3005.8,0.405504]
[1763432408775,0.002,3008.5,3007.1,1.31249664]
[1763432409064,0.002,3008.5,3007.3,0.405504]
[1763432409258,0.002,3008.5,3007.4,0.03325131]
[1763432409597,0.002,3009.2,3007.5,0.405504]
[1763432409890,0.002,3009.2,3007.7,0.405504]
[1763432410091,0.002,3009.2,3007.9,0.405504]
[1763432410700,0.002,3009.2,3007.1,0.90699264]
[1763432410701,0.002,3009.2,3007.2,0.43875752]
[1763432410899,0.002,3009.2,3007.4,0.405504]
[1763432411075,0.002,3009.2,3007.4,0.03325131]
[1763432411935,0.002,3009.2,3007.1,0.90699264]
[1763432411936,0.07712319,3010.8,3008.5,0.405504]
[1763432412130,0.07712319,3010.8,3009.4,0.405504]
[1763432412338,0.002,3012.7,3009.6,0.405504]
[1763432412339,0.4813,3012.6,3009.6,0.405504]
[1763432412622,0.002,3012.7,3010.4,1.31249664]
[1763432412925,0.1816,3015.0,3011.4,1.31249664]
[1763432413239,0.1816,3015.0,3011.6,0.405504]
[1763432413538,0.1816,3015.0,3012.4,1.31249664]
[1763432413740,0.1816,3015.0,3012.6,0.405504]
[1763432413896,0.1816,3015.0,3012.8,0.405504]
[1763432414102,0.4813,3014.9,3011.7,0.17518268]
[1763432414327,0.4813,3014.9,3011.8,0.43870673]
[1763432415044,0.4813,3014.9,3011.8,0.405504]
[1763432415249,0.4813,3014.9,3011.4,0.405504]
[1763432415400,0.4813,3014.9,3011.6,0.405504]
[1763432415600,0.4813,3014.9,3011.8,0.405504]
[1763432415925,0.4813,3014.9,3012.0,0.405504]
[1763432416235,0.4813,3014.9,3011.1,7.08053097]
[1763432416236,0.1816,3015.3,3012.4,0.405504]
[1763432416440,0.6629,3015.3,3012.6,0.405504]
[1763432416636,0.4813,3015.2,3012.6,0.43869791]
[1763432417237,0.09083496,3016.6,3012.6,0.43869791]
[1763432417238,0.1816,3015.7,3013.0,1.31249664]
[1763432417537,0.4813,3015.6,3013.2,0.405504]
[1763432417741,0.4813,3016.2,3013.4,0.405504]
[1763432417925,0.09083496,3016.6,3013.6,0.405504]
[1763432418130,0.09083496,3016.6,3014.0,1.31249664]
[1763432418436,0.57213496,3016.6,3014.1,0.43868139]
[1763432419233,0.57213496,3016.6,3015.0,1.31249664]
[1763432419234,0.09083496,3016.6,3015.0,1.31249664]
[1763432419441,0.09083496,3016.6,3015.2,0.405504]
[1763432419643,0.09083496,3016.6,3015.4,0.405504]
[1763432419802,0.09083496,3016.6,3015.1,0.405504]
[1763432420126,0.09083496,3016.6,3015.2,0.03316529]
[1763432420709,0.09083496,3016.6,3015.1,0.405504]
[1763432420905,0.09083496,3016.6,3015.2,0.03316529]
[1763432421104,0.09083496,3016.6,3013.1,2.47704536]
[1763432421105,0.4628,3016.5,3013.9,7.08053097]
[1763432421308,0.4628,3016.5,3014.0,0.7412316]
[1763432421614,0.09083496,3016.6,3014.0,1.64822424]
[1763432421813,0.09083496,3016.6,3015.0,1.31249664]
[1763432422041,0.002,3016.8,3016.0,1.31249664]
[1763432422246,0.002,3017.2,3016.2,0.405504]
[1763432422444,0.002,3017.2,3016.4,0.405504]
[1763432422648,0.002,3017.2,3016.6,0.405504]
[1763432422940,0.002,3017.2,3016.8,0.405504]
[1763432423103,0.002,3021.0,3017.0,1.31249664]
[1763432423104,0.1888,3019.2,3017.0,1.31249664]
[1763432423306,0.1888,3019.2,3017.2,0.405504]
[1763432423502,0.1888,3019.2,3017.1,0.87576183]
[1763432423503,0.4628,3019.0,3017.0,0.405504]
[1763432423762,0.4628,3019.0,3017.2,0.405504]
[1763432423909,0.4628,3019.0,3017.0,0.90699264]
[1763432424106,0.4628,3019.0,3017.1,0.43864841]
[1763432424663,0.4648,3019.8,3017.1,0.405504]
[1763432424827,0.4648,3019.8,3018.0,1.31249664]
[1763432425010,0.1888,3019.4,3018.0,1.34563116]
[1763432425347,0.1888,3019.4,3017.1,0.405504]
[1763432425348,0.4648,3019.1,3017.1,0.405504]
[1763432425508,0.4648,3019.1,3017.1,0.43864841]
[1763432425708,0.4648,3019.1,3017.1,0.03314441]
[1763432425915,0.002,3016.8,3016.3,7.08053097]
[1763432426348,0.002,3016.8,3016.0,0.001]
[1763432426349,0.4628,3016.7,3016.0,0.001]
[1763432426549,0.002,3016.8,3016.0,0.001]
[1763432427049,0.002,3016.8,3016.1,0.405504]
[1763432427213,0.002,3016.8,3016.3,0.405504]
[1763432427420,0.002,3017.2,3016.5,0.405504]
[1763432427614,0.002,3017.2,3016.1,0.405504]
[1763432427945,0.002,3017.5,3016.8,1.31249664]
[1763432428152,0.4628,3018.5,3017.0,0.405504]
[1763432428334,0.4628,3019.2,3017.2,0.405504]
[1763432428520,0.4628,3019.0,3017.4,0.405504]
[1763432428726,0.4628,3019.0,3017.6,0.405504]
[1763432429328,0.4628,3019.0,3016.8,0.90699264]
[1763432429329,0.4628,3019.0,3017.2,0.405504]
[1763432429530,0.4628,3019.0,3016.8,0.90699264]
[1763432429531,0.4628,3019.0,3016.4,0.405504]
[1763432429853,0.4628,3019.0,3016.3,7.08053097]
[1763432430435,0.4628,3019.0,3016.4,0.0331521]
[1763432430630,0.4628,3019.0,3016.4,0.94014474]
[1763432430920,0.1888,3020.2,3018.4,1.31249664]
[1763432431116,0.4648,3020.3,3019.4,0.90699264]
[1763432431355,0.002,3020.3,3019.5,0.03311806]
[1763432431521,0.002,3020.3,3019.4,0.90699264]
[1763432432053,0.002,3020.3,3019.5,0.03311806]
[1763432432271,0.002,3020.3,3019.4,0.9401118]
[1763432432424,0.002,3020.3,3019.5,0.03311806]
[1763432432623,0.002,3020.7,3019.5,0.03311806]
[1763432433062,0.002,3020.7,3019.5,0.63421221]
[1763432433359,0.002,3020.7,3019.6,0.405504]
[1763432433575,0.002,3020.7,3019.5,0.405504]
[1763432434056,0.002,3020.7,3019.6,0.03311696]
[1763432434445,0.1888,3024.0,3020.4,7.08053097]
[1763432434446,0.4628,3022.0,3020.4,7.08053097]
[1763432434631,0.4628,3022.0,3020.6,0.405504]
[1763432435435,0.1888,3022.8,3020.8,0.405504]
[1763432435636,0.1888,3023.3,3021.5,1.31249664]